[Event "Titled Tuesday Blitz July 25 Early 2023"]
[White "UNSTOPPABLE_LEGEND"]
[Black "Fiorito, Francisco"]
[BlackFideId "180165"]
[WhiteElo "2456"]
[BlackElo "2532"]
[Result "0-1"]
[Round "11"]
[TimeControl "180+2"]
[Date "2023.07.25"]
[WhiteClock "0:00:05"]
[BlackClock "0:01:10"]
[Board "103"]

1. Nf3 {[%clk 0:01:48]}  Nf6 {[%clk 0:02:57]} 2. c4 {[%clk 0:01:47]}  b6 {[%clk 0:02:56]} 3. g3 {[%clk 0:01:46]}  Bb7 {[%clk 0:02:56]} 4. Bg2 {[%clk 0:01:47]}  g6 {[%clk 0:02:57]} 5. O-O {[%clk 0:01:48]}  Bg7 {[%clk 0:02:57]} 6. d4 {[%clk 0:01:48]}  O-O {[%clk 0:02:57]} 7. Nc3 {[%clk 0:01:49]}  Ne4 {[%clk 0:02:57]} 8. Qc2 {[%clk 0:01:47]}  Nxc3 {[%clk 0:02:56]} 9. bxc3 {[%clk 0:01:46]}  d6 {[%clk 0:02:55]} 10. e4 {[%clk 0:01:46]}  c5 {[%clk 0:02:55]} 11. Re1 {[%clk 0:01:45]}  Nc6 {[%clk 0:02:50]} 12. Be3 {[%clk 0:01:43]}  Na5 {[%clk 0:02:49]} 13. Nd2 {[%clk 0:01:42]}  Rc8 {[%clk 0:02:48]} 14. d5 {[%clk 0:01:40]}  Ba6 {[%clk 0:02:47]} 15. Bf1 {[%clk 0:01:38]}  Qd7 {[%clk 0:02:46]} 16. f4 {[%clk 0:01:36]}  e6 {[%clk 0:02:46]} 17. Rab1 {[%clk 0:01:33]}  Rfe8 {[%clk 0:02:43]} 18. Bf2 {[%clk 0:01:16]}  exd5 {[%clk 0:02:34]} 19. cxd5 {[%clk 0:01:17]}  Bxf1 {[%clk 0:02:33]} 20. Kxf1 {[%clk 0:01:14]}  b5 {[%clk 0:02:33]} 21. Kg2 {[%clk 0:01:04]}  a6 {[%clk 0:02:32]} 22. c4 {[%clk 0:00:48]}  b4 {[%clk 0:02:26]} 23. Nb3 {[%clk 0:00:48]}  Nb7 {[%clk 0:02:25]} 24. Nc1 {[%clk 0:00:39]}  a5 {[%clk 0:02:25]} 25. Nd3 {[%clk 0:00:39]}  Bc3 {[%clk 0:02:24]} 26. Re2 {[%clk 0:00:38]}  f6 {[%clk 0:02:18]} 27. Be1 {[%clk 0:00:18]}  Bd4 {[%clk 0:02:15]} 28. Bf2 {[%clk 0:00:18]}  Bxf2 {[%clk 0:02:08]} 29. Rxf2 {[%clk 0:00:18]}  Rxe4 {[%clk 0:02:06]} 30. Ne5 {[%clk 0:00:17]}  Rxe5 {[%clk 0:01:56]} 31. fxe5 {[%clk 0:00:17]}  fxe5 {[%clk 0:01:56]} 32. Rbf1 {[%clk 0:00:18]}  Re8 {[%clk 0:01:55]} 33. Rf7 {[%clk 0:00:18]}  Qxf7 {[%clk 0:01:54]} 34. Rxf7 {[%clk 0:00:19]}  Kxf7 {[%clk 0:01:55]} 35. Qd1 {[%clk 0:00:19]}  Re7 {[%clk 0:01:54]} 36. Qg4 {[%clk 0:00:19]}  a4 {[%clk 0:01:52]} 37. h4 {[%clk 0:00:18]}  a3 {[%clk 0:01:50]} 38. Qf3+ {[%clk 0:00:17]}  Kg7 {[%clk 0:01:50]} 39. h5 {[%clk 0:00:18]}  Rf7 {[%clk 0:01:49]} 40. h6+ {[%clk 0:00:18]}  Kf8 {[%clk 0:01:46]} 41. Qg4 {[%clk 0:00:18]}  Nd8 {[%clk 0:01:33]} 42. Qc8 {[%clk 0:00:18]}  Ke8 {[%clk 0:01:33]} 43. Qb8 {[%clk 0:00:18]}  Rd7 {[%clk 0:01:33]} 44. Qb5 {[%clk 0:00:17]}  Ke7 {[%clk 0:01:32]} 45. Kf3 {[%clk 0:00:17]}  Nf7 {[%clk 0:01:33]} 46. Qb8 {[%clk 0:00:16]}  Nxh6 {[%clk 0:01:32]} 47. Qh8 {[%clk 0:00:15]}  Nf7 {[%clk 0:01:22]} 48. Qb8 {[%clk 0:00:15]}  h5 {[%clk 0:01:20]} 49. Ke3 {[%clk 0:00:15]}  g5 {[%clk 0:01:20]} 50. Kd3 {[%clk 0:00:16]}  Rd8 {[%clk 0:01:15]} 51. Qc7+ {[%clk 0:00:16]}  Kf6 {[%clk 0:01:15]} 52. Kc2 {[%clk 0:00:15]}  h4 {[%clk 0:01:16]} 53. gxh4 {[%clk 0:00:15]}  gxh4 {[%clk 0:01:16]} 54. Qa5 {[%clk 0:00:05]}  h3 {[%clk 0:01:13]} 55. Qa4 {[%clk 0:00:06]}  h2 {[%clk 0:01:12]} 56. Qb3 {[%clk 0:00:06]}  h1=Q {[%clk 0:01:11]} 57. Qd3 {[%clk 0:00:07]}  e4 {[%clk 0:01:10]} 58. Qe3 {[%clk 0:00:07]}  Qg2+ {[%clk 0:01:10]} 59. Kb3 {[%clk 0:00:05]}  Qf3 {[%clk 0:01:10]} 0-1


[Site "https://www.chess.com"]

[Event "Titled Tuesday Blitz July 25 Early 2023"]
[White "Eynullayev, Atilla"]
[Black "Akylbek2021"]
[WhiteFideId "13413570"]
[WhiteElo "2529"]
[BlackElo "2451"]
[Result "1-0"]
[Round "11"]
[TimeControl "180+2"]
[Date "2023.07.25"]
[WhiteClock "0:01:57"]
[BlackClock "0:00:00"]
[Board "104"]

1. d4 {[%clk 0:03:00]}  Nf6 {[%clk 0:02:59]} 2. c4 {[%clk 0:03:00]}  g6 {[%clk 0:02:56]} 3. Nc3 {[%clk 0:03:01]}  d5 {[%clk 0:02:57]} 4. cxd5 {[%clk 0:03:01]}  Nxd5 {[%clk 0:02:57]} 5. e4 {[%clk 0:03:02]}  Nxc3 {[%clk 0:02:58]} 6. bxc3 {[%clk 0:03:03]}  Bg7 {[%clk 0:02:59]} 7. Nf3 {[%clk 0:03:03]}  O-O {[%clk 0:02:59]} 8. Be2 {[%clk 0:03:03]}  c5 {[%clk 0:03:00]} 9. O-O {[%clk 0:03:03]}  Nc6 {[%clk 0:02:59]} 10. Be3 {[%clk 0:03:04]}  Bg4 {[%clk 0:02:57]} 11. d5 {[%clk 0:03:04]}  Bxf3 {[%clk 0:02:57]} 12. Bxf3 {[%clk 0:03:03]}  Ne5 {[%clk 0:02:57]} 13. Be2 {[%clk 0:02:50]}  Qc7 {[%clk 0:02:40]} 14. c4 {[%clk 0:02:42]}  Nd7 {[%clk 0:02:02]} 15. Rb1 {[%clk 0:02:39]}  f5 {[%clk 0:02:00]} 16. exf5 {[%clk 0:02:28]}  gxf5 {[%clk 0:01:51]} 17. d6 {[%clk 0:02:20]}  Qxd6 {[%clk 0:01:32]} 18. Rxb7 {[%clk 0:02:20]}  Nb6 {[%clk 0:01:19]} 19. Bf3 {[%clk 0:02:13]}  f4 {[%clk 0:01:14]} 20. Bc1 {[%clk 0:02:02]}  Bd4 {[%clk 0:00:54]} 21. Qe2 {[%clk 0:02:01]}  Rf6 {[%clk 0:00:12]} 22. Rxb6 {[%clk 0:01:58]}  axb6 {[%clk 0:00:02]} 23. Bxa8 {[%clk 0:01:59]}  f3 {[%clk 0:00:01]} 24. Bxf3 {[%clk 0:01:59]}  Rh6 {[%clk 0:00:01]} 25. g3 {[%clk 0:01:59]}  Rg6 {[%clk 0:00:01]} 26. Bd5+ {[%clk 0:01:58]}  Kg7 {[%clk 0:00:00]} 27. Qf3 {[%clk 0:01:57]} 1-0


[Site "https://www.chess.com"]

[Event "Titled Tuesday Blitz July 25 Early 2023"]
[White "Sriniaiyer, Sudarshan"]
[Black "To, Nhat Minh"]
[WhiteFideId "30937213"]
[BlackFideId "729019"]
[WhiteElo "2378"]
[BlackElo "2502"]
[Result "0-1"]
[Round "11"]
[TimeControl "180+2"]
[Date "2023.07.25"]
[WhiteClock "0:00:39"]
[BlackClock "0:01:47"]
[Board "108"]

1. c4 {[%clk 0:03:00]}  e5 {[%clk 0:02:55]} 2. g3 {[%clk 0:03:00]}  c6 {[%clk 0:02:53]} 3. Nf3 {[%clk 0:02:59]}  e4 {[%clk 0:02:51]} 4. Nd4 {[%clk 0:03:00]}  d5 {[%clk 0:02:50]} 5. cxd5 {[%clk 0:03:00]}  Qxd5 {[%clk 0:02:49]} 6. e3 {[%clk 0:03:00]}  Nf6 {[%clk 0:02:47]} 7. Bg2 {[%clk 0:03:00]}  Bc5 {[%clk 0:02:42]} 8. Nc3 {[%clk 0:02:56]}  Qe5 {[%clk 0:02:41]} 9. Nc2 {[%clk 0:02:51]}  O-O {[%clk 0:02:37]} 10. O-O {[%clk 0:02:30]}  Rd8 {[%clk 0:02:35]} 11. a3 {[%clk 0:02:22]}  a5 {[%clk 0:02:34]} 12. b3 {[%clk 0:02:10]}  Bf5 {[%clk 0:02:26]} 13. Qe2 {[%clk 0:01:59]}  Na6 {[%clk 0:02:21]} 14. Bb2 {[%clk 0:01:55]}  Qe6 {[%clk 0:02:22]} 15. Na4 {[%clk 0:01:10]}  Qxb3 {[%clk 0:02:14]} 16. Nxc5 {[%clk 0:01:10]}  Qxb2 {[%clk 0:02:09]} 17. Nxa6 {[%clk 0:01:06]}  Qxc2 {[%clk 0:02:07]} 18. Nc7 {[%clk 0:00:55]}  Rxd2 {[%clk 0:02:03]} 19. Qe1 {[%clk 0:00:51]}  Rc8 {[%clk 0:01:56]} 20. Rc1 {[%clk 0:00:51]}  Qd3 {[%clk 0:01:56]} 21. Rc5 {[%clk 0:00:50]}  Bg4 {[%clk 0:01:46]} 22. Nb5 {[%clk 0:00:39]}  cxb5 {[%clk 0:01:47]} 0-1


[Site "https://www.chess.com"]

[Event "Titled Tuesday Blitz July 25 Early 2023"]
[White "LLariMarc"]
[Black "Roberson, Peter T"]
[BlackFideId "412384"]
[WhiteElo "2362"]
[BlackElo "2483"]
[Result "0-1"]
[Round "11"]
[TimeControl "180+2"]
[Date "2023.07.25"]
[WhiteClock "0:00:43"]
[BlackClock "0:00:30"]
[Board "110"]

1. d4 {[%clk 0:03:00]}  Nf6 {[%clk 0:02:59]} 2. Nf3 {[%clk 0:03:01]}  c5 {[%clk 0:03:00]} 3. c3 {[%clk 0:02:59]}  g6 {[%clk 0:02:57]} 4. Bg5 {[%clk 0:02:58]}  Bg7 {[%clk 0:02:57]} 5. Nbd2 {[%clk 0:02:57]}  O-O {[%clk 0:02:58]} 6. e3 {[%clk 0:02:57]}  b6 {[%clk 0:02:57]} 7. Bd3 {[%clk 0:02:58]}  Bb7 {[%clk 0:02:58]} 8. O-O {[%clk 0:02:58]}  d6 {[%clk 0:02:59]} 9. Re1 {[%clk 0:02:58]}  Nbd7 {[%clk 0:02:59]} 10. Qe2 {[%clk 0:02:58]}  h6 {[%clk 0:02:57]} 11. Bxf6 {[%clk 0:02:58]}  exf6 {[%clk 0:02:55]} 12. Rad1 {[%clk 0:02:59]}  Re8 {[%clk 0:02:55]} 13. h3 {[%clk 0:02:52]}  f5 {[%clk 0:02:54]} 14. Bc4 {[%clk 0:02:51]}  Nf6 {[%clk 0:02:49]} 15. Nf1 {[%clk 0:02:49]}  Qc7 {[%clk 0:02:49]} 16. N1h2 {[%clk 0:02:49]}  Re7 {[%clk 0:02:45]} 17. Qc2 {[%clk 0:02:47]}  Rc8 {[%clk 0:02:40]} 18. Bf1 {[%clk 0:02:45]}  Ne4 {[%clk 0:02:36]} 19. d5 {[%clk 0:02:36]}  a6 {[%clk 0:02:24]} 20. c4 {[%clk 0:02:35]}  Rb8 {[%clk 0:02:22]} 21. a4 {[%clk 0:02:35]}  Bc8 {[%clk 0:02:22]} 22. Nd2 {[%clk 0:02:32]}  Bd7 {[%clk 0:02:22]} 23. Nxe4 {[%clk 0:02:29]}  fxe4 {[%clk 0:02:22]} 24. Ra1 {[%clk 0:02:25]}  b5 {[%clk 0:02:20]} 25. cxb5 {[%clk 0:02:25]}  axb5 {[%clk 0:02:21]} 26. a5 {[%clk 0:02:26]}  Ra8 {[%clk 0:02:13]} 27. Qd2 {[%clk 0:02:24]}  Ree8 {[%clk 0:02:05]} 28. Ra2 {[%clk 0:02:22]}  Ra7 {[%clk 0:02:01]} 29. Rea1 {[%clk 0:02:20]}  Rea8 {[%clk 0:02:00]} 30. h4 {[%clk 0:02:15]}  h5 {[%clk 0:01:58]} 31. g3 {[%clk 0:02:15]}  b4 {[%clk 0:01:50]} 32. Bc4 {[%clk 0:02:12]}  Rxa5 {[%clk 0:01:50]} 33. Rxa5 {[%clk 0:02:04]}  Rxa5 {[%clk 0:01:50]} 34. Rxa5 {[%clk 0:02:04]}  Qxa5 {[%clk 0:01:51]} 35. b3 {[%clk 0:01:59]}  Bb5 {[%clk 0:01:35]} 36. Qc2 {[%clk 0:01:58]}  Qa6 {[%clk 0:01:18]} 37. Bxb5 {[%clk 0:01:55]}  Qxb5 {[%clk 0:01:19]} 38. Qxe4 {[%clk 0:01:55]}  c4 {[%clk 0:01:19]} 39. bxc4 {[%clk 0:01:54]}  Qa4 {[%clk 0:01:17]} 40. c5 {[%clk 0:01:48]}  dxc5 {[%clk 0:01:17]} 41. d6 {[%clk 0:01:48]}  Qd1+ {[%clk 0:01:13]} 42. Kg2 {[%clk 0:01:47]}  Qxd6 {[%clk 0:01:13]} 43. Nf3 {[%clk 0:01:40]}  b3 {[%clk 0:01:10]} 44. Ng5 {[%clk 0:01:32]}  b2 {[%clk 0:01:08]} 45. Qe8+ {[%clk 0:01:28]}  Qf8 {[%clk 0:01:08]} 46. Qb5 {[%clk 0:01:27]}  c4 {[%clk 0:01:07]} 47. Nf3 {[%clk 0:01:10]}  c3 {[%clk 0:01:02]} 48. Ne1 {[%clk 0:01:05]}  Qa8+ {[%clk 0:00:54]} 49. Kh2 {[%clk 0:01:01]}  Qa1 {[%clk 0:00:52]} 50. Qe8+ {[%clk 0:00:52]}  Bf8 {[%clk 0:00:50]} 51. Nc2 {[%clk 0:00:52]}  Qf1 {[%clk 0:00:34]} 52. Na3 {[%clk 0:00:43]}  Qxf2+ {[%clk 0:00:30]} 0-1


[Site "https://www.chess.com"]

[Event "Titled Tuesday Blitz July 25 Early 2023"]
[White "marik_spb"]
[Black "kiwibobo"]
[WhiteElo "2478"]
[BlackElo "2340"]
[Result "1-0"]
[Round "11"]
[TimeControl "180+2"]
[Date "2023.07.25"]
[WhiteClock "0:00:44"]
[BlackClock "0:00:23"]
[Board "112"]

1. d4 {[%clk 0:01:52]}  Nf6 {[%clk 0:02:58]} 2. c4 {[%clk 0:01:52]}  g6 {[%clk 0:02:54]} 3. h4 {[%clk 0:01:52]}  Bg7 {[%clk 0:02:47]} 4. Nc3 {[%clk 0:01:53]}  d5 {[%clk 0:02:44]} 5. h5 {[%clk 0:01:53]}  Nxh5 {[%clk 0:02:39]} 6. cxd5 {[%clk 0:01:52]}  e6 {[%clk 0:02:33]} 7. dxe6 {[%clk 0:01:49]}  Bxe6 {[%clk 0:02:33]} 8. Nf3 {[%clk 0:01:50]}  Nf6 {[%clk 0:02:26]} 9. Bg5 {[%clk 0:01:50]}  O-O {[%clk 0:02:11]} 10. e4 {[%clk 0:01:49]}  Qe8 {[%clk 0:01:51]} 11. Bd3 {[%clk 0:01:43]}  c6 {[%clk 0:01:44]} 12. Qd2 {[%clk 0:01:34]}  h5 {[%clk 0:01:26]} 13. Bxf6 {[%clk 0:01:09]}  Bxf6 {[%clk 0:01:27]} 14. e5 {[%clk 0:01:09]}  Bg7 {[%clk 0:01:19]} 15. Ne4 {[%clk 0:01:09]}  Bf5 {[%clk 0:01:06]} 16. Nd6 {[%clk 0:01:08]}  Qe6 {[%clk 0:00:49]} 17. Bxf5 {[%clk 0:01:05]}  gxf5 {[%clk 0:00:48]} 18. Qg5 {[%clk 0:01:03]}  f6 {[%clk 0:00:44]} 19. Qxh5 {[%clk 0:01:02]}  Rd8 {[%clk 0:00:32]} 20. Nxf5 {[%clk 0:00:45]}  fxe5 {[%clk 0:00:23]} 21. Qh7+ {[%clk 0:00:44]} 1-0


[Site "https://www.chess.com"]

[Event "Titled Tuesday Blitz July 25 Early 2023"]
[White "Voege, Tobias"]
[Black "Fernandez Siles, Luis"]
[WhiteFideId "1270513"]
[BlackFideId "2209420"]
[WhiteElo "2612"]
[BlackElo "2324"]
[Result "1-0"]
[Round "11"]
[TimeControl "180+2"]
[Date "2023.07.25"]
[WhiteClock "0:00:16"]
[BlackClock "0:00:29"]
[Board "115"]

1. e4 {[%clk 0:03:00]}  c5 {[%clk 0:02:59]} 2. Nf3 {[%clk 0:03:00]}  Nc6 {[%clk 0:02:59]} 3. d4 {[%clk 0:03:00]}  cxd4 {[%clk 0:03:00]} 4. Nxd4 {[%clk 0:03:01]}  Nf6 {[%clk 0:03:01]} 5. Nc3 {[%clk 0:03:01]}  e5 {[%clk 0:03:01]} 6. Ndb5 {[%clk 0:03:00]}  d6 {[%clk 0:03:02]} 7. Bg5 {[%clk 0:02:58]}  a6 {[%clk 0:03:02]} 8. Na3 {[%clk 0:02:57]}  b5 {[%clk 0:03:02]} 9. Nd5 {[%clk 0:02:55]}  Be7 {[%clk 0:03:02]} 10. Bxf6 {[%clk 0:02:55]}  Bxf6 {[%clk 0:03:03]} 11. c3 {[%clk 0:02:53]}  O-O {[%clk 0:03:03]} 12. Be2 {[%clk 0:02:51]}  Rb8 {[%clk 0:03:00]} 13. Nc2 {[%clk 0:02:51]}  Bg5 {[%clk 0:02:57]} 14. O-O {[%clk 0:02:43]}  Be6 {[%clk 0:02:56]} 15. g3 {[%clk 0:02:38]}  Ne7 {[%clk 0:02:55]} 16. f4 {[%clk 0:02:34]}  Bxd5 {[%clk 0:02:51]} 17. exd5 {[%clk 0:02:33]}  exf4 {[%clk 0:02:50]} 18. gxf4 {[%clk 0:02:34]}  Bf6 {[%clk 0:02:47]} 19. Bf3 {[%clk 0:02:29]}  Nf5 {[%clk 0:02:43]} 20. Qd3 {[%clk 0:02:22]}  g6 {[%clk 0:02:40]} 21. Nb4 {[%clk 0:02:16]}  Qb6+ {[%clk 0:02:34]} 22. Kh1 {[%clk 0:02:15]}  Rbe8 {[%clk 0:02:30]} 23. Rae1 {[%clk 0:02:04]}  Rxe1 {[%clk 0:02:27]} 24. Rxe1 {[%clk 0:02:05]}  Qf2 {[%clk 0:02:26]} 25. Qe2 {[%clk 0:02:04]}  Qh4 {[%clk 0:02:17]} 26. Qd2 {[%clk 0:01:53]}  Ng3+ {[%clk 0:01:52]} 27. Kg2 {[%clk 0:01:47]}  Nh5 {[%clk 0:01:52]} 28. Re4 {[%clk 0:01:27]}  a5 {[%clk 0:01:28]} 29. Nc6 {[%clk 0:01:22]}  Kg7 {[%clk 0:01:20]} 30. f5 {[%clk 0:01:18]}  Qg5+ {[%clk 0:01:19]} 31. Qxg5 {[%clk 0:01:18]}  Bxg5 {[%clk 0:01:19]} 32. Bxh5 {[%clk 0:01:13]}  gxh5 {[%clk 0:01:20]} 33. Nxa5 {[%clk 0:01:11]}  Ra8 {[%clk 0:01:17]} 34. b4 {[%clk 0:01:10]}  Bd2 {[%clk 0:01:17]} 35. a3 {[%clk 0:00:58]}  Bxc3 {[%clk 0:01:16]} 36. Re3 {[%clk 0:00:49]}  Bd4 {[%clk 0:01:09]} 37. Rd3 {[%clk 0:00:43]}  Bb2 {[%clk 0:01:04]} 38. Nb7 {[%clk 0:00:27]}  Rxa3 {[%clk 0:01:01]} 39. Rxa3 {[%clk 0:00:16]}  Bxa3 {[%clk 0:01:02]} 40. Nxd6 {[%clk 0:00:16]}  Bxb4 {[%clk 0:01:02]} 41. Nxb5 {[%clk 0:00:13]}  Kf6 {[%clk 0:00:58]} 42. Nd4 {[%clk 0:00:09]}  Bc5 {[%clk 0:00:52]} 43. Nc6 {[%clk 0:00:07]}  Kxf5 {[%clk 0:00:48]} 44. Kf3 {[%clk 0:00:08]}  h4 {[%clk 0:00:47]} 45. h3 {[%clk 0:00:08]}  h5 {[%clk 0:00:44]} 46. Na5 {[%clk 0:00:07]}  Ke5 {[%clk 0:00:43]} 47. Nc4+ {[%clk 0:00:06]}  Kxd5 {[%clk 0:00:43]} 48. Nd2 {[%clk 0:00:06]}  Ke5 {[%clk 0:00:41]} 49. Ne4 {[%clk 0:00:06]}  Kf5 {[%clk 0:00:39]} 50. Nxc5 {[%clk 0:00:05]}  Kg5 {[%clk 0:00:37]} 51. Ne4+ {[%clk 0:00:06]}  Kf5 {[%clk 0:00:36]} 52. Nd6+ {[%clk 0:00:07]}  Ke6 {[%clk 0:00:36]} 53. Ne8 {[%clk 0:00:07]}  Kf5 {[%clk 0:00:35]} 54. Ng7+ {[%clk 0:00:08]}  Kg6 {[%clk 0:00:35]} 55. Ne8 {[%clk 0:00:09]}  Kf5 {[%clk 0:00:35]} 56. Nc7 {[%clk 0:00:08]}  Ke5 {[%clk 0:00:35]} 57. Nb5 {[%clk 0:00:09]}  Kf5 {[%clk 0:00:34]} 58. Nd4+ {[%clk 0:00:08]}  Ke5 {[%clk 0:00:34]} 59. Ke3 {[%clk 0:00:09]}  f5 {[%clk 0:00:32]} 60. Nf3+ {[%clk 0:00:10]}  Kf6 {[%clk 0:00:30]} 61. Kf4 {[%clk 0:00:11]}  Kg6 {[%clk 0:00:30]} 62. Nxh4+ {[%clk 0:00:12]}  Kf6 {[%clk 0:00:30]} 63. Nxf5 {[%clk 0:00:13]}  Kg6 {[%clk 0:00:30]} 64. h4 {[%clk 0:00:14]}  Kf6 {[%clk 0:00:30]} 65. Ng3 {[%clk 0:00:15]}  Kg6 {[%clk 0:00:30]} 66. Ne4 {[%clk 0:00:15]}  Kg7 {[%clk 0:00:30]} 67. Kg5 {[%clk 0:00:15]}  Kh7 {[%clk 0:00:29]} 68. Kxh5 {[%clk 0:00:16]} 1-0


[Site "https://www.chess.com"]

[Event "Titled Tuesday Blitz July 25 Early 2023"]
[White "Parpiev, Isaak"]
[Black "Llanos, Guillermo"]
[WhiteFideId "34281576"]
[BlackFideId "100358"]
[WhiteElo "2576"]
[BlackElo "2370"]
[Result "1-0"]
[Round "11"]
[TimeControl "180+2"]
[Date "2023.07.25"]
[WhiteClock "0:01:06"]
[BlackClock "0:01:06"]
[Board "116"]

1. Nf3 {[%clk 0:02:56]}  Nf6 {[%clk 0:03:00]} 2. g3 {[%clk 0:02:57]}  g6 {[%clk 0:03:01]} 3. Bg2 {[%clk 0:02:58]}  Bg7 {[%clk 0:03:01]} 4. O-O {[%clk 0:02:59]}  O-O {[%clk 0:03:01]} 5. c4 {[%clk 0:02:58]}  c5 {[%clk 0:03:01]} 6. d3 {[%clk 0:02:59]}  Nc6 {[%clk 0:03:00]} 7. Nc3 {[%clk 0:02:59]}  d5 {[%clk 0:02:58]} 8. cxd5 {[%clk 0:02:59]}  Nxd5 {[%clk 0:02:59]} 9. Bd2 {[%clk 0:02:59]}  b6 {[%clk 0:02:50]} 10. Nxd5 {[%clk 0:02:47]}  Qxd5 {[%clk 0:02:50]} 11. Ng5 {[%clk 0:02:44]}  Qd7 {[%clk 0:02:47]} 12. Bc3 {[%clk 0:02:39]}  Bb7 {[%clk 0:02:43]} 13. Bxg7 {[%clk 0:02:31]}  Kxg7 {[%clk 0:02:43]} 14. h4 {[%clk 0:02:24]}  Nd4 {[%clk 0:02:26]} 15. Bxb7 {[%clk 0:02:23]}  Qxb7 {[%clk 0:02:26]} 16. e3 {[%clk 0:02:24]}  h6 {[%clk 0:02:16]} 17. exd4 {[%clk 0:02:18]}  hxg5 {[%clk 0:02:15]} 18. hxg5 {[%clk 0:02:10]}  cxd4 {[%clk 0:02:15]} 19. Qg4 {[%clk 0:02:08]}  Rh8 {[%clk 0:02:04]} 20. Qxd4+ {[%clk 0:02:06]}  Kg8 {[%clk 0:02:03]} 21. Qe4 {[%clk 0:02:06]}  Qc8 {[%clk 0:01:56]} 22. Rac1 {[%clk 0:01:55]}  Qd8 {[%clk 0:01:48]} 23. Rfe1 {[%clk 0:01:55]}  e6 {[%clk 0:01:48]} 24. d4 {[%clk 0:01:54]}  Rb8 {[%clk 0:01:44]} 25. Qe5 {[%clk 0:01:53]}  Rh5 {[%clk 0:01:40]} 26. f4 {[%clk 0:01:46]}  Rb7 {[%clk 0:01:40]} 27. d5 {[%clk 0:01:30]}  exd5 {[%clk 0:01:36]} 28. Qe8+ {[%clk 0:01:27]}  Qxe8 {[%clk 0:01:34]} 29. Rxe8+ {[%clk 0:01:28]}  Kg7 {[%clk 0:01:31]} 30. Rcc8 {[%clk 0:01:29]}  f5 {[%clk 0:01:29]} 31. Rg8+ {[%clk 0:01:16]}  Kf7 {[%clk 0:01:29]} 32. Rcf8+ {[%clk 0:01:14]}  Ke7 {[%clk 0:01:29]} 33. Rg7+ {[%clk 0:01:12]}  Kxf8 {[%clk 0:01:29]} 34. Rxb7 {[%clk 0:01:13]}  d4 {[%clk 0:01:21]} 35. Rxa7 {[%clk 0:01:13]}  Rh3 {[%clk 0:01:18]} 36. Kg2 {[%clk 0:01:13]}  Rh5 {[%clk 0:01:17]} 37. Rb7 {[%clk 0:01:08]}  d3 {[%clk 0:01:17]} 38. Rxb6 {[%clk 0:01:05]}  Rh7 {[%clk 0:01:16]} 39. Rb8+ {[%clk 0:01:03]}  Ke7 {[%clk 0:01:12]} 40. Rb7+ {[%clk 0:01:04]}  Kd8 {[%clk 0:01:10]} 41. Rxh7 {[%clk 0:01:05]}  d2 {[%clk 0:01:06]} 42. Rh1 {[%clk 0:01:06]} 1-0


[Site "https://www.chess.com"]

[Event "Titled Tuesday Blitz July 25 Early 2023"]
[White "Ganiev, Roman"]
[Black "FREDERICKtheMATE"]
[WhiteFideId "4131452"]
[WhiteElo "2574"]
[BlackElo "2365"]
[Result "0-1"]
[Round "11"]
[TimeControl "180+2"]
[Date "2023.07.25"]
[WhiteClock "0:01:26"]
[BlackClock "0:01:18"]
[Board "117"]

1. e4 {[%clk 0:03:00]}  c5 {[%clk 0:03:00]} 2. Nf3 {[%clk 0:02:57]}  g6 {[%clk 0:03:01]} 3. d4 {[%clk 0:02:57]}  cxd4 {[%clk 0:03:02]} 4. Qxd4 {[%clk 0:02:57]}  Nf6 {[%clk 0:03:01]} 5. e5 {[%clk 0:02:57]}  Nc6 {[%clk 0:03:02]} 6. Qa4 {[%clk 0:02:58]}  Nd5 {[%clk 0:03:01]} 7. Qb3 {[%clk 0:02:59]}  Nb6 {[%clk 0:03:00]} 8. Bf4 {[%clk 0:02:59]}  Bg7 {[%clk 0:03:00]} 9. Nc3 {[%clk 0:02:58]}  O-O {[%clk 0:02:58]} 10. O-O-O {[%clk 0:02:58]}  d6 {[%clk 0:02:55]} 11. exd6 {[%clk 0:02:57]}  e5 {[%clk 0:02:55]} 12. Bg3 {[%clk 0:02:55]}  Be6 {[%clk 0:02:55]} 13. Qb5 {[%clk 0:02:46]}  Nd4 {[%clk 0:02:39]} 14. Qd3 {[%clk 0:02:40]}  Bf5 {[%clk 0:02:36]} 15. Ne4 {[%clk 0:02:31]}  Nd7 {[%clk 0:02:27]} 16. Nxd4 {[%clk 0:02:28]}  exd4 {[%clk 0:02:27]} 17. f3 {[%clk 0:02:21]}  Nc5 {[%clk 0:02:26]} 18. Qe2 {[%clk 0:02:21]}  Re8 {[%clk 0:02:21]} 19. Qf2 {[%clk 0:02:04]}  Bxe4 {[%clk 0:02:16]} 20. fxe4 {[%clk 0:02:04]}  Nxe4 {[%clk 0:02:16]} 21. Qf3 {[%clk 0:02:04]}  Nxg3 {[%clk 0:02:03]} 22. Qxg3 {[%clk 0:02:05]}  Be5 {[%clk 0:02:03]} 23. Qf3 {[%clk 0:02:04]}  Qxd6 {[%clk 0:02:03]} 24. Bc4 {[%clk 0:01:59]}  Re7 {[%clk 0:02:02]} 25. Kb1 {[%clk 0:01:58]}  Rc8 {[%clk 0:01:59]} 26. Bb3 {[%clk 0:01:58]}  Kg7 {[%clk 0:01:57]} 27. h4 {[%clk 0:01:58]}  h6 {[%clk 0:01:45]} 28. h5 {[%clk 0:01:55]}  g5 {[%clk 0:01:44]} 29. Qf5 {[%clk 0:01:53]}  Qd7 {[%clk 0:01:36]} 30. Qf3 {[%clk 0:01:47]}  a5 {[%clk 0:01:30]} 31. Bd5 {[%clk 0:01:44]}  g4 {[%clk 0:01:20]} 32. Qb3 {[%clk 0:01:32]}  a4 {[%clk 0:01:19]} 33. Qxb7 {[%clk 0:01:26]}  Qxb7 {[%clk 0:01:18]} 0-1


[Site "https://www.chess.com"]